[Event "15th Arad Open 2022"]
[Site "Arad"]
[Date "2022.08.11"]
[Round "6.13"]
[White "Herczeg, Marcell"]
[Black "Tamas, Christian-Arrydan"]
[Result "1-0"]
[ECO "B33"]
[WhiteElo "2044"]
[BlackElo "1913"]
[Annotator "NA RC"]
[PlyCount "75"]
[EventDate "2022.08.08"]
[EventType "swiss"]
[EventCountry "ROU"]
[SourceTitle "playchess.com"]
[Source "ChessBase"]
[SourceQuality "1"]
[TimeControl "5400+30"]

1. e4 {[%emt 0:00:22]} c5 {[%emt 0:00:11]} 2. Nf3 {[%emt 0:00:46]} Nc6 {[%emt 0:00:06]} 3. d4 {[%emt 0:00:43]} cxd4 {[%emt 0:00:04]} 4. Nxd4 {[%emt 0:00:12]} Nf6 {[%emt 0:00:09]} 5. Nc3 {[%emt 0:00:51]} e5 {[%emt 0:00:21]} 6. Ndb5 {[%emt 0:01:12]} d6 {[%emt 0:00:06]} 7. Bg5 {[%emt 1:29:54]} a6 {[%emt 0:00:06]} 8. Na3 {[%emt 0:00:00]} b5 {[%emt 1:33:27]} 9. Nd5 {[%emt 0:00:00]} Be7 {[%emt 0:00:30]} 10. Bxf6 {[%emt 0:00:00]} Bxf6 {[%emt 0:00:30]} 11. c3 {[%emt 0:00:00]} Bg5 {[%emt 0:00:00]} 12. Nc2 {[%emt 0:00:00]} Rb8 {[%emt 0:00:00]} 13. a4 {[%emt 0:00:00]} bxa4 {[%emt 0:00:00]} 14. Ncb4 {[%emt 0:00:00]} Nxb4 {[%emt 0:00:00]} 15. Nxb4 {[%emt 0:00:00]} Bd7 {[%emt 0:00:00]} 16. Bxa6 {[%emt 0:00:00]} Qa5 {[%emt 0:00:00]} 17. Bd3 {[%emt 0:00:00]} Rxb4 {[%emt 0:00:00]} 18. cxb4 {[%emt 0:00:00]} Qxb4+ {[%emt 0:00:00]} 19. Kf1 {[%emt 0:00:00]} O-O {[%emt 0:00:00]} 20. Qe2 {[%emt 0:00:00] [#]} (20. g3 $1 $11 {keeps the balance.}) 20... Bd8 {[%emt 0:00:00]} (20... Rb8 $1 $17 21. h4 Bd8) 21. Rc1 $1 {[%emt 0:00:00]} Bb6 {[%emt 0:00:00]} 22. Rc4 {[%emt 0:00:00]} Qa5 {[%emt 0:00:00]} 23. g4 {[%emt 0:00:00]} Bd4 {[%emt 0:00:00]} 24. Kg2 {[%emt 0:00:00]} Rb8 {[%emt 0:00:00]} 25. Rhc1 {[%emt 0:00:00]} g6 {[%emt 0:00:00]} 26. R1c2 {[%emt 0:00:00]} Qb6 {[%emt 0:00:00]} 27. Rc7 {[%emt 0:00:00]} Be6 {[%emt 0:00:00]} 28. R7c6 $11 {[%emt 0:00:00]} Qb4 {[%emt 0:00:00]} 29. Bc4 {[%emt 0:00:00]} Bxc4 {[%emt 0:00:00]} 30. R6xc4 {[%emt 0:00:00]} Qb7 {[%emt 0:00:00]} 31. Qf3 {[%emt 0:00:00]} Bxb2 {[%emt 0:10:30]} 32. Rxa4 {[%emt 0:00:00]} Rc8 {[%emt 0:00:00]} 33. Ra7 {[%emt 0:04:42]} Qxa7 {[%emt 0:00:00]} 34. Rxc8+ {[%emt 0:00:06]} Kg7 {[%emt 0:00:00]} 35. g5 {[%emt 0:05:42]} Qe7 {[%emt 0:00:00]} 36. Qg4 {[%emt 0:00:33]} Qb7 {[%emt 0:00:00]} 37. Rd8 {[%emt 0:00:59]} Qb6 {[%emt 0:00:00]} 38. Qc8 {[%emt 0:00:30]} 1-0

[Event "15th Arad Open 2022"]
[Site "Arad"]
[Date "2022.08.11"]
[Round "6.14"]
[White "Moerman, Thomas"]
[Black "Butolo, Alexandru-Mircea"]
[Result "0-1"]
[ECO "E04"]
[WhiteElo "2026"]
[BlackElo "1863"]
[Annotator "NA RC"]
[PlyCount "120"]
[EventDate "2022.08.08"]
[EventType "swiss"]
[EventCountry "ROU"]
[SourceTitle "playchess.com"]
[Source "ChessBase"]
[SourceQuality "1"]
[TimeControl "5400+30"]

1. d4 {[%emt 0:00:04]} Nf6 {[%emt 0:00:04]} 2. c4 {[%emt 0:00:09]} e6 {[%emt 0:00:02]} 3. g3 {[%emt 0:00:06]} d5 {[%emt 0:00:04]} 4. Bg2 {[%emt 0:00:05]} c6 {[%emt 0:00:05]} 5. Nf3 {[%emt 0:00:14]} dxc4 {[%emt 0:00:06]} 6. O-O {[%emt 0:00:17]} Nbd7 {[%emt 0:01:21]} 7. a4 {[%emt 0:00:25]} Bd6 {[%emt 0:01:38]} 8. Nbd2 {[%emt 0:01:07]} O-O {[%emt 0:01:16]} 9. e4 {[%emt 0:01:19]} Bb4 {[%emt 0:03:55]} 10. Qc2 {[%emt 0:01:09]} b5 {[%emt 0:02:39]} 11. e5 {[%emt 0:02:57]} Nd5 {[%emt 0:00:33]} 12. Ne4 {[%emt 0:00:14]} h6 {[%emt 0:06:27]} 13. g4 {[%emt 0:00:30]} Be7 {[%emt 0:14:28]} (13... a5 $11 {remains equal.}) 14. g5 {[%emt 0:01:10]} h5 $1 {[%emt 0:02:36]} 15. Nh4 {[%emt 0:00:56]} Qb6 {[%emt 0:05:52]} (15... c5 $11) 16. Qd1 {[%emt 0:01:43]} ({Better is} 16. axb5 Qxd4 17. Rd1) 16... g6 {[%emt 0:08:53]} 17. Nf6+ {[%emt 0:01:22]} Kg7 $16 {[%emt 0:00:30]} (17... Bxf6 18. gxf6 Rb8 19. Bxd5 Nxf6 20. exf6 $18) 18. Be3 {[%emt 0:11:50]} Rd8 {[%emt 0:03:46]} 19. Be4 {[%emt 0:00:32]} Bb7 {[%emt 0:13:07]} 20. Qb1 {[%emt 0:08:55]} Nf8 {[%emt 0:04:16]} 21. Ng2 {[%emt 0:08:40]} a6 {[%emt 0:05:41]} 22. Rc1 {[%emt 0:04:06]} Rac8 {[%emt 0:01:04]} 23. Qa2 {[%emt 0:14:45]} Nxe3 {[%emt 0:10:27]} 24. fxe3 {[%emt 0:02:10]} Ra8 {[%emt 0:02:20]} 25. b3 {[%emt 0:01:16]} c5 {[%emt 0:01:19]} 26. bxc4 {[%emt 0:02:39]} Bxe4 {[%emt 0:00:34]} 27. Nxe4 {[%emt 0:00:29]} cxd4 {[%emt 0:10:57]} 28. Qe2 {[%emt 0:05:06]} d3 {[%emt 0:00:00]} 29. Qf3 {[%emt 0:00:57]} Nd7 {[%emt 0:00:00]} 30. Qf4 {[%emt 0:01:19]} Qb8 {[%emt 0:00:00]} 31. Nd6 {[%emt 0:00:28]} Bxd6 {[%emt 0:00:00]} 32. exd6 {[%emt 0:00:06]} e5 {[%emt 0:00:00]} 33. Qf3 {[%emt 0:03:47]} Qxd6 {[%emt 0:00:00]} 34. axb5 {[%emt 0:01:37]} Nc5 {[%emt 0:00:00]} 35. Rf1 {[%emt 0:00:24]} Qe6 {[%emt 0:00:00]} 36. e4 {[%emt 0:03:18]} axb5 {[%emt 0:00:00]} 37. Rxa8 {[%emt 0:00:59]} Rxa8 {[%emt 0:00:00]} 38. cxb5 {[%emt 0:00:59]} Rd8 {[%emt 0:00:00]} 39. Ne3 {[%emt 0:00:24]} d2 {[%emt 0:00:00]} 40. Nd1 {[%emt 0:00:00]} Qg4+ {[%emt 0:00:00]} 41. Qxg4 {[%emt 0:00:00]} hxg4 {[%emt 0:00:00]} 42. Nf2 {[%emt 0:00:00]} Nxe4 {[%emt 0:00:00]} 43. Nxe4 {[%emt 0:00:00]} d1=Q {[%emt 0:00:00]} 44. Rxd1 {[%emt 0:00:00]} Rxd1+ {[%emt 0:00:00]} 45. Kf2 {[%emt 0:00:00]} Rb1 {[%emt 0:00:00]} 46. Nd6 {[%emt 0:00:00]} Rb3 {[%emt 0:00:00]} 47. Ne8+ {[%emt 0:00:00]} Kf8 {[%emt 0:00:00]} 48. Nf6 {[%emt 0:00:00]} Rxb5 {[%emt 0:00:00]} 49. Nxg4 {[%emt 0:00:00]} Ke7 {[%emt 0:00:00]} 50. Kf3 {[%emt 0:00:00]} Ke6 {[%emt 0:00:00]} 51. h4 {[%emt 0:00:00]} Rb4 {[%emt 0:00:00]} 52. Kg3 {[%emt 0:00:00]} Rxg4+ {[%emt 0:00:00]} 53. Kxg4 {[%emt 0:00:00]} e4 {[%emt 0:00:00]} 54. Kf4 {[%emt 0:00:00]} Kd5 {[%emt 0:00:00]} 55. h5 {[%emt 0:00:00]} gxh5 {[%emt 0:00:00]} 56. Kf5 {[%emt 0:00:00]} e3 {[%emt 0:00:00]} 57. Kf6 {[%emt 0:00:00]} e2 {[%emt 0:00:00]} 58. Kxf7 {[%emt 0:00:00]} e1=Q {[%emt 0:00:00]} 59. g6 {[%emt 0:00:00]} h4 {[%emt 0:00:00]} 60. g7 {[%emt 0:00:00]} Qg1 {[%emt 0:00:00]} 0-1

[Event "15th Arad Open 2022"]
[Site "Arad"]
[Date "2022.08.11"]
[Round "6.15"]
[White "Parasca, Claudiu"]
[Black "Ambru, Dan-Calin"]
[Result "0-1"]
[ECO "A49"]
[WhiteElo "1784"]
[BlackElo "2001"]
[Annotator "NA RC"]
[PlyCount "100"]
[EventDate "2022.08.08"]
[EventType "swiss"]
[EventCountry "ROU"]
[SourceTitle "playchess.com"]
[Source "ChessBase"]
[SourceQuality "1"]
[TimeControl "5400+30"]

1. d4 {[%emt 0:00:00]} Nf6 {[%emt 0:01:15]} 2. Nf3 {[%emt 0:02:24]} g6 {[%emt 0:00:07]} 3. g3 {[%emt 0:00:24]} Bg7 {[%emt 0:00:06]} 4. Bg2 {[%emt 0:00:06]} d6 {[%emt 0:00:36]} 5. O-O {[%emt 0:00:20]} O-O {[%emt 0:00:07]} 6. Nbd2 {[%emt 0:00:28]} Nc6 {[%emt 0:04:54]} 7. c3 {[%emt 0:00:11]} e5 {[%emt 0:02:46]} 8. e3 {[%emt 0:01:28]} Qe7 {[%emt 0:17:26]} 9. Ng5 {[%emt 0:00:42] [#]} h6 $11 {[%emt 0:06:17]} ({Black should play} 9... d5 $1 $17) 10. Nge4 {[%emt 0:00:15]} Nxe4 {[%emt 0:02:19]} 11. Nxe4 {[%emt 0:00:04]} f5 {[%emt 0:01:35]} 12. Nd2 {[%emt 0:00:03]} e4 {[%emt 0:00:37]} 13. Re1 {[%emt 0:01:32]} Nd8 {[%emt 0:03:22]} 14. b4 {[%emt 0:00:44]} d5 {[%emt 0:01:32]} 15. a4 {[%emt 0:00:20]} g5 {[%emt 0:06:55]} 16. Nf1 {[%emt 0:00:09]} ({Better is} 16. Ba3 $11) 16... g4 {[%emt 0:02:39]} 17. b5 {[%emt 0:00:29]} Qf7 {[%emt 0:01:42]} 18. Qb3 {[%emt 0:00:42]} Be6 {[%emt 0:01:20]} 19. Ba3 {[%emt 0:00:21]} Re8 {[%emt 0:00:06]} 20. Nd2 {[%emt 0:04:16]} Qh5 {[%emt 0:06:09]} 21. Rec1 {[%emt 0:00:32]} Nf7 {[%emt 0:01:49]} 22. Qd1 {[%emt 0:00:11]} Ng5 {[%emt 0:05:39]} 23. Bf1 {[%emt 0:00:15]} Rad8 {[%emt 0:03:26]} 24. Bb4 {[%emt 0:00:45]} Qf7 {[%emt 0:10:26]} 25. Ra2 {[%emt 0:01:52]} Rd7 {[%emt 0:00:49]} 26. Rac2 {[%emt 0:00:21]} Red8 {[%emt 0:01:10]} 27. Bg2 {[%emt 0:00:16]} Qh5 {[%emt 0:03:07]} 28. Ra1 {[%emt 0:07:14]} Nf3+ {[%emt 0:02:39]} 29. Nxf3 {[%emt 0:00:23]} gxf3 {[%emt 0:00:09]} 30. Bf1 {[%emt 0:00:28]} Qg6 {[%emt 0:04:22]} 31. Qe1 {[%emt 0:00:48]} Re8 {[%emt 0:02:11]} 32. Rac1 {[%emt 0:00:24]} h5 {[%emt 0:02:07]} 33. c4 {[%emt 0:05:22]} dxc4 {[%emt 0:00:32]} 34. Bxc4 {[%emt 0:00:02]} Bxc4 {[%emt 0:00:28]} 35. Rxc4 {[%emt 0:00:02]} Rc8 {[%emt 0:02:58]} 36. a5 {[%emt 0:00:19]} h4 {[%emt 0:00:55]} 37. R1c2 {[%emt 0:00:51]} f4 {[%emt 0:01:01]} 38. b6 {[%emt 0:02:00]} axb6 {[%emt 0:00:17]} 39. axb6 {[%emt 0:00:03]} Qxb6 {[%emt 0:04:05]} 40. Bc5 {[%emt 1:13:24]} Qg6 {[%emt 0:00:00]} 41. exf4 {[%emt 0:00:00]} b6 {[%emt 0:00:00]} 42. Ba3 {[%emt 0:00:00]} hxg3 {[%emt 0:00:00]} 43. hxg3 {[%emt 0:00:00]} Bxd4 {[%emt 0:00:00]} 44. Rxd4 {[%emt 0:00:00]} Rxd4 {[%emt 0:00:00]} 45. Rc1 {[%emt 0:00:00]} Rcd8 {[%emt 0:00:00]} 46. Qf1 {[%emt 0:00:00]} e3 {[%emt 0:00:00]} 47. Bb2 {[%emt 0:00:00]} e2 {[%emt 0:00:00]} 48. Qh3 {[%emt 0:00:00]} Rd1+ {[%emt 0:00:00]} 49. Kh2 {[%emt 0:00:00]} Qh7 {[%emt 0:00:00]} 50. Rxc7 {[%emt 0:00:00]} Rh1+ {[%emt 0:00:00]} 0-1

[Event "15th Arad Open 2022"]
[Site "Arad"]
[Date "2022.08.11"]
[Round "6.16"]
[White "Matasaru, Stephanie"]
[Black "Chima, Radu-Niculin"]
[Result "1-0"]
[ECO "B04"]
[WhiteElo "1885"]
[BlackElo "2005"]
[Annotator "TA"]
[PlyCount "69"]
[EventDate "2022.08.08"]
[EventType "swiss"]
[EventCountry "ROU"]
[SourceTitle "playchess.com"]
[Source "ChessBase"]
[SourceQuality "1"]
[TimeControl "5400+30"]

{[%evp 17,69,0,0,-20,28,9,16,2,68,67,71,60,61,62,51,47,56,52,76,70,55,71,79,45,56,31,36,25,33,34,27,30,70,66,133,128,488,509,505,504,503,485,560,543,620,615,609,401,413,383,593,582,1838,1343]} 1. e4 {[%emt 0:00:01][%cal Be2e4,Be4e5][%mdl 32]} Nf6 {[%emt 0:00:07]} 2. e5 {[%emt 0:00:04]} Nd5 {[%emt 0:00:05]} 3. d4 {[%emt 0:00:04]} d6 {[%emt 0:00:07]} 4. c4 {[%emt 0:00:11]} Nb6 {[%emt 0:00:09]} 5. exd6 {[%emt 0:00:07]} cxd6 {[%emt 0:00:15]} 6. Nc3 {[%emt 0:00:08]} g6 {[%emt 0:00:11]} 7. Be3 {[%emt 0:00:08]} Bg7 {[%emt 0:00:10]} 8. h3 {[%emt 0:00:10]} O-O {[%emt 0:00:19]} 9. Nf3 {[%emt 0:00:05]} Nc6 {[%emt 0:01:47]} 10. d5 {[%emt 0:00:52] B04: Alekhine's Defence: 4 Nf3.} Ne5 {[%emt 0:04:42]} (10... Na5 {is more appropriate.}) 11. Nxe5 $11 {[%emt 0:00:07]} Bxe5 {[%emt 0:00:06]} 12. Rc1 {[%emt 0:00:31] The position is equal.} Nd7 {[%emt 0:02:06]} (12... e6 $11) 13. Be2 $14 {[%emt 0:01:44] [#] White is more active.} a5 $146 {[%emt 0:03:55]} ({Predecessor:} 13... Bg7 14. O-O a6 15. Re1 Nf6 16. Bf1 Bd7 17. Qb3 Bc8 18. Bb6 Qd7 19. Na4 e5 20. dxe6 fxe6 {1-0 (39) Toma,K (2259)-Golek,J (2044) Krakow 2008}) 14. O-O {[%emt 0:01:47]} Nc5 {[%emt 0:00:41]} 15. f4 {[%emt 0:06:23]} Bg7 {[%emt 0:00:49]} 16. Kh2 {[%emt 0:05:16]} Bd7 {[%emt 0:01:45]} 17. Bd4 {[%emt 0:00:56]} Bh6 {[%emt 0:05:37]} 18. Bg4 {[%emt 0:12:10]} f5 {[%emt 0:00:40]} 19. Be2 {[%emt 0:00:25]} Qc7 {[%emt 0:04:08]} 20. Nb5 {[%emt 0:02:14]} (20. b3) 20... Qd8 {[%emt 0:05:35]} 21. Bc3 {[%emt 0:08:25]} Rf7 {[%emt 0:06:25]} 22. Nd4 {[%emt 0:02:19]} Ne4 {[%emt 0:00:52]} 23. Bd3 {[%emt 0:02:26]} Nxc3 {[%emt 0:00:33]} 24. bxc3 {[%emt 0:00:52]} a4 {[%emt 0:04:06]} 25. Rb1 {[%emt 0:01:48][%cal Bc1b1,Bb1b7,Bb7b5,Bb5d5][%mdl 32]} Qa5 {[%emt 0:03:40]} (25... b6 $14) 26. Rxb7 $16 {[%emt 0:03:44]} e5 $2 {[%emt 0:01:11][%mdl 8192] [#] Black cannot hold the game after this.} (26... Ra7 $16 {is more resistant.} 27. Rb4 Bg7) 27. dxe6 $18 {[%emt 0:02:07]} Bxe6 {[%emt 0:02:58]} 28. Rb5 {[%emt 0:00:31]} Qxc3 {[%emt 0:01:29]} 29. Nxe6 {[%emt 0:00:21]} Re8 {[%emt 0:00:47]} 30. Ng5 {[%emt 0:01:04]} Rfe7 {[%emt 0:00:17]} 31. Bc2 {[%emt 0:06:26][%cal Bd3c2,Bc2a4,Ba4e8][%mdl 32]} Qxc4 {[%emt 0:04:00]} 32. Qd5+ {[%emt 0:03:09]} Qxd5 {[%emt 0:00:11]} 33. Rxd5 {[%emt 0:00:02]} Re2 {[%emt 0:00:17]} (33... Ra7 {was called for.} 34. Rxd6 Bxg5 35. fxg5 Kf8) 34. Bxa4 {[%emt 0:00:13]} Rxa2 {[%emt 0:01:41]} 35. Bxe8 {[%emt 0:00:13] Weighted Error Value: White=0.14 (very precise) /Black=0.56} 1-0

[Event "15th Arad Open 2022"]
[Site "Arad"]
[Date "2022.08.11"]
[Round "6.17"]
[White "Ungureanu, Sandu"]
[Black "Cazan, Andrei"]
[Result "1-0"]
[ECO "E61"]
[WhiteElo "2011"]
[BlackElo "1833"]
[Annotator "NA RC"]
[PlyCount "109"]
[EventDate "2022.08.08"]
[EventType "swiss"]
[EventCountry "ROU"]
[SourceTitle "playchess.com"]
[Source "ChessBase"]
[SourceQuality "1"]
[TimeControl "5400+30"]

1. g3 {[%emt 0:00:02]} g6 {[%emt 0:00:23]} 2. Bg2 {[%emt 0:00:07]} Bg7 {[%emt 0:00:12]} 3. d4 {[%emt 0:00:09]} Nf6 {[%emt 0:00:39]} 4. c4 {[%emt 0:00:14]} d6 {[%emt 0:00:56]} 5. Nc3 {[%emt 0:00:44]} Nbd7 {[%emt 0:01:25]} 6. Bg5 {[%emt 0:01:02]} h6 {[%emt 0:00:21]} 7. Bxf6 {[%emt 0:00:06]} Nxf6 {[%emt 0:02:28]} 8. e4 {[%emt 0:00:13]} O-O {[%emt 0:01:02]} 9. h3 {[%emt 0:01:19]} e5 {[%emt 0:04:19]} 10. dxe5 {[%emt 0:00:41]} dxe5 {[%emt 0:00:03]} 11. Qxd8 {[%emt 0:00:49]} Rxd8 {[%emt 0:00:03]} 12. Nf3 {[%emt 0:02:14]} Ne8 {[%emt 0:05:53]} 13. Ke2 {[%emt 0:01:53]} Be6 {[%emt 0:03:50]} 14. b3 {[%emt 0:01:06]} Rd7 {[%emt 0:03:58]} 15. Rhd1 {[%emt 0:01:41]} Rad8 {[%emt 0:01:48]} 16. Rxd7 {[%emt 0:01:25]} Rxd7 {[%emt 0:00:29]} 17. Ne1 {[%emt 0:02:23]} c6 {[%emt 0:08:23]} 18. Nd3 {[%emt 0:01:45]} b6 {[%emt 0:02:04]} 19. Nb4 {[%emt 0:02:35]} Rc7 {[%emt 0:04:05]} 20. Rd1 {[%emt 0:07:26]} Kf8 {[%emt 0:06:29]} 21. Na6 {[%emt 0:02:26]} Rc8 {[%emt 0:03:42]} 22. Bf1 {[%emt 0:02:11]} Ke7 {[%emt 0:03:41]} 23. c5 {[%emt 0:01:18]} Nc7 {[%emt 0:07:12]} 24. Nb4 {[%emt 0:04:08]} Bd7 {[%emt 0:01:58]} 25. cxb6 {[%emt 0:00:56]} axb6 {[%emt 0:00:02]} 26. a4 {[%emt 0:00:42]} Ne6 {[%emt 0:03:42]} 27. Nc2 $17 {[%emt 0:00:07]} Nd4+ {[%emt 0:02:01]} 28. Nxd4 {[%emt 0:00:17]} exd4 {[%emt 0:00:02]} 29. Na2 {[%emt 0:05:08]} Be6 {[%emt 0:02:21]} 30. Rb1 {[%emt 0:01:44]} c5 {[%emt 0:01:12]} 31. Kd2 {[%emt 0:00:17]} f5 {[%emt 0:04:12]} 32. exf5 {[%emt 0:01:30]} Bxf5 {[%emt 0:04:06]} 33. Bd3 {[%emt 0:01:03]} Bxh3 {[%emt 0:04:09]} 34. Bxg6 {[%emt 0:00:09]} Rf8 {[%emt 0:05:30]} 35. f4 {[%emt 0:00:20]} Kd6 {[%emt 0:07:28]} 36. Re1 {[%emt 0:01:33]} Be6 {[%emt 0:00:54]} 37. Nc1 {[%emt 0:00:15]} Rb8 {[%emt 0:02:41]} 38. Bd3 {[%emt 0:00:11]} Bd7 {[%emt 0:00:55]} 39. Bc4 {[%emt 0:00:47]} Re8 {[%emt 0:01:13]} 40. Rxe8 {[%emt 0:00:00]} Bxe8 {[%emt 0:00:00]} 41. Nd3 {[%emt 0:00:00]} Bd7 {[%emt 0:00:00]} 42. Nf2 {[%emt 0:00:00]} Be6 {[%emt 0:00:00]} 43. Ne4+ {[%emt 0:00:00]} Ke7 {[%emt 0:00:00]} 44. Bxe6 {[%emt 0:00:00]} Kxe6 {[%emt 0:00:00]} 45. g4 {[%emt 0:00:00]} Kd5 {[%emt 0:00:00]} 46. Kd3 {[%emt 0:00:00]} Bh8 {[%emt 0:00:00]} 47. Ng3 {[%emt 0:00:00]} Bg7 {[%emt 0:00:00]} 48. Nh5 {[%emt 0:00:00]} Bf8 {[%emt 0:01:17]} 49. g5 {[%emt 0:00:00]} hxg5 {[%emt 0:00:22]} 50. fxg5 {[%emt 0:00:00]} Ke6 {[%emt 0:00:34]} 51. Nf4+ {[%emt 0:00:00]} Kf5 {[%emt 0:01:11]} 52. Nd5 {[%emt 0:00:00]} Kxg5 {[%emt 0:00:46]} 53. Nxb6 {[%emt 0:00:00]} Bd6 {[%emt 0:00:35]} 54. Nd7 {[%emt 0:00:00]} Kf5 {[%emt 0:02:30]} 55. a5 {[%emt 0:00:00]} 1-0

[Event "15th Arad Open 2022"]
[Site "Arad"]
[Date "2022.08.11"]
[Round "6.18"]
[White "Dinca, Ovidiu"]
[Black "Ionescu, Irina"]
[Result "0-1"]
[ECO "B01"]
[WhiteElo "1831"]
[BlackElo "2125"]
[Annotator "TA"]
[PlyCount "126"]
[EventDate "2022.08.08"]
[EventType "swiss"]
[EventCountry "ROU"]
[SourceTitle "playchess.com"]
[Source "ChessBase"]
[SourceQuality "1"]
[TimeControl "5400+30"]

{[%evp 9,126,25,37,33,28,21,26,24,30,8,14,15,20,19,18,0,11,0,2,-47,-49,-42,-47,-41,0,0,14,13,16,10,17,0,0,-4,0,-8,-12,-60,-69,-61,-69,-78,-66,-74,-87,-93,-73,-112,-82,-78,-57,-68,-55,-64,-53,-112,-105,-263,0,-69,0,-260,-61,-95,-86,-85,-85,-161,-126,-250,-146,-161,-162,-159,-133,-141,-108,-173,-142,-218,-215,-215,-211,-278,-261,-272,-184,-663,-372,-362,-353,-372,-320,-436,-392,-488,-447,-958,-450,-800,-695,-1833,-438,-555,-417,-442,-429,-854,-847,-1418,-970,-869,-737,-29986,-29987,-29987,-29988,-29992,-29988]} 1. e4 {[%emt 0:00:03]} d5 {[%emt 0:01:32]} 2. exd5 {[%emt 0:00:14]} Qxd5 {[%emt 0:00:07]} 3. Nf3 {[%emt 1:31:43]} Bg4 {[%emt 0:03:24]} 4. Be2 {[%emt 0:00:06]} Nc6 {[%emt 0:00:09]} 5. O-O {[%emt 0:00:23]} O-O-O {[%emt 0:02:39]} 6. h3 {[%emt 0:02:54] B01: Scandinavian Defence.} Bh5 {[%emt 0:00:42]} 7. Nc3 {[%emt 1:29:53]} Qd7 {[%emt 0:00:31]} 8. d3 {[%emt 0:07:51][%cal Ob2b4] White has an edge.} Nf6 {[%emt 0:07:30]} 9. Be3 {[%emt 0:01:00][%cal Ob2b4]} e5 {[%emt 1:18:26]} 10. a3 {[%emt 0:01:33] [#]} h6 $146 {[%emt 0:16:53]} ({Predecessor:} 10... Bd6 11. b4 Rhe8 12. Ne4 Kb8 13. Re1 h6 14. Rb1 Nxe4 15. dxe4 Qe6 16. Nd2 Bxe2 17. Qxe2 {½-½ (27) Agulnick,M (1937)-Wittal,W (2114) IECC email 2018}) 11. b4 {[%emt 0:00:48]} g5 {[%emt 0:00:08]} 12. b5 {[%emt 0:04:37]} Bxf3 {[%emt 0:57:10]} 13. Bxf3 {[%emt 0:00:04]} Nd4 {[%emt 0:00:10]} 14. Bxd4 {[%emt 0:01:36]} (14. Rb1 $11 {feels stronger.}) 14... exd4 $15 {[%emt 0:01:00]} 15. Ne4 {[%emt 0:00:18]} Nxe4 {[%emt 0:06:06]} 16. dxe4 {[%emt 0:00:09]} Kb8 {[%emt 0:00:24]} 17. Qe2 {[%emt 0:02:02]} Bg7 {[%emt 0:05:14]} 18. Rab1 {[%emt 0:01:27]} Rhe8 {[%emt 0:12:47]} 19. Qc4 {[%emt 0:02:19]} Re5 {[%emt 0:06:35]} 20. a4 {[%emt 0:01:15]} Qe7 {[%emt 0:00:35]} 21. a5 {[%emt 0:01:12]} Rc5 {[%emt 0:28:18]} 22. Qb4 {[%emt 1:07:02]} Qe5 {[%emt 0:01:36]} 23. b6 {[%emt 0:00:00]} (23. Qa4 $11 {is superior.}) 23... cxb6 $1 {[%emt 0:27:21]} (23... Rxa5 24. bxc7+ Qxc7 25. e5 $16) (23... axb6 24. axb6 cxb6 25. Qxb6 $11) 24. axb6 {[%emt 0:00:00]} a6 {[%emt 0:00:19]} 25. Qb3 {[%emt 0:00:00]} Qe6 {[%emt 0:01:24]} 26. Qa4 {[%emt 0:00:00]} Qc4 {[%emt 0:06:15]} 27. Qa3 {[%emt 0:00:00][%cal Of3e2]} Bf8 {[%emt 0:01:37]} (27... Qxc2 $2 28. Rbc1 Qxc1 29. Rxc1 $18) 28. Qa1 {[%emt 0:00:00]} Bd6 {[%emt 0:04:14]} 29. Rfd1 {[%emt 0:00:00]} Be5 {[%emt 0:00:18]} 30. Qa3 {[%emt 0:00:00] Inhibits d3.} Rdc8 {[%emt 0:04:11]} (30... Qxc2 $2 31. Rbc1 Qxc1 32. Rxc1 $18) 31. Bg4 {[%emt 0:00:00]} R8c6 {[%emt 0:04:43]} 32. Rb2 {[%emt 0:00:00]} ({White should try} 32. Rf1 $15) 32... Qc3 $17 {[%emt 0:08:17]} 33. Qa2 {[%emt 0:00:00]} (33. Rb3 $17 Qxc2 34. g3) 33... Qc4 $2 {[%emt 0:00:04]} (33... d3 $1 $19 34. Rb3 Qxc2) 34. Qa3 $15 {[%emt 0:06:00]} Qc3 $2 {[%emt 0:00:05]} (34... Rd6 $15 35. Rd3 Rcc6) 35. Qa2 $19 {[%emt 0:00:00]} Rf6 $2 {[%emt 0:00:17]} (35... d3 $1 $19 36. Rb3 Qxc2) 36. Qb1 {[%emt 0:00:57]} Rcc6 {[%emt 0:00:42][%cal Oh6h5]} 37. Rd3 {[%emt 0:00:38]} Qc5 {[%emt 0:01:08]} 38. Bf5 {[%emt 0:04:27]} (38. Be2 $17) 38... Rxb6 {[%emt 0:01:40]} 39. Rdb3 {[%emt 0:00:18] [#]} (39. Bg4 $17 {keeps fighting.}) 39... Bc7 {[%emt 0:02:17]} ({Black should play} 39... d3 $1 $19 40. c3 {[#]} (40. Rxb6 $2 {perishes.} Rxb6 41. Rxb6 dxc2 $19) 40... d2 $1 41. Rxd2 (41. Rxb6 $2 {loses.} Rxb6 42. Rxb6 Qxb6 $19) 41... Qxc3 42. Rxb6 (42. Rd8+ $2 Ka7 $19) 42... Rxb6 43. Rd8+ Ka7) 40. g3 {[%emt 0:00:00]} Ka7 {[%emt 0:00:00]} 41. Kg2 {[%emt 0:00:00]} Rxb3 {[%emt 0:00:00] Black is more active.} 42. cxb3 {[%emt 0:00:00]} Rb6 {[%emt 0:00:00]} 43. Qd1 {[%emt 0:00:00]} (43. Rc2 $17 {might work better.} Qe7 44. Rc4) 43... Be5 {[%emt 0:00:00]} 44. Rb1 {[%emt 0:00:00]} (44. Rd2 $17 {was worth a try.}) 44... Qc3 {[%emt 0:00:00]} 45. Bg4 {[%emt 0:00:00]} d3 {[%emt 0:00:00] Against Be2} 46. Bh5 {[%emt 0:00:00]} Bd4 {[%emt 0:00:00]} 47. Bf3 {[%emt 0:00:00]} Qc2 {[%emt 0:00:20]} 48. Qf1 {[%emt 0:00:00]} (48. Qxc2 dxc2 49. Rc1) 48... Rxb3 {[%emt 0:01:12]} 49. Rxb3 {[%emt 0:00:36]} Qxb3 {[%emt 0:00:05][%mdl 4096] Endgame KQB-KQB} 50. Qe1 {[%emt 0:07:04]} f6 {[%emt 0:01:29][%cal Bf7f6,Bf6e5][%mdl 32]} 51. h4 {[%emt 0:03:11]} Qc2 {[%emt 0:01:24]} 52. h5 {[%emt 0:00:25]} d2 {[%emt 0:01:07]} 53. Qe2 {[%emt 0:00:53]} (53. Qd1 $142 Qc3 54. e5) 53... a5 {[%emt 0:00:19]} (53... d1=B $142 54. Qxd1 Qxf2+ 55. Kh1 Bb6) 54. e5 {[%emt 0:00:15]} (54. Qd1 $142 Qd3 55. Qa4) 54... fxe5 {[%emt 0:00:21] And now ...a4 would win.} 55. Qb5 {[%emt 0:00:32][%csl Gf3][%cal Rb5b7]} Qc7 {[%emt 0:00:15]} (55... Bb6 $142 {( -> ...e4)} 56. Qd5 e4) 56. Qd3 {[%emt 0:00:39]} Bc3 {[%emt 0:01:27] Hoping for ...a4.} 57. Qe3+ {[%emt 0:00:17]} Kb8 {[%emt 0:00:24]} 58. Qd3 {[%emt 0:00:35]} (58. Qe4 $142) 58... a4 {[%emt 0:00:58][%cal Og5g4,Ba5a4,Ba4a3][%mdl 32] aiming for ...g4!} 59. Qb5 {[%emt 0:00:32]} a3 {[%emt 0:00:29]} 60. Qb3 {[%emt 0:00:40]} g4 {[%emt 0:01:21]} 61. Be4 {[%emt 0:01:23]} Bd4 {[%emt 0:00:12] Black mates.} 62. Bc2 {[%emt 0:00:53]} Qc6+ {[%emt 0:00:15]} 63. Kg1 {[%emt 0:00:30]} Qf3 {[%emt 0:02:24] Weighted Error Value: White=0.73/Black=0.57} 0-1